[Event "Elite Hotels Open 2023"]
[Site "Elite Stadshotellet, Kungsgatan 6, Vaxjo, Sweden"]
[Date "2023.02.10"]
[Round "4.6"]
[White "Bellon Lopez, Juan Manuel"]
[Black "Kucuksari, Kaan"]
[Result "0-1"]
[TimeControl "15 minutes + 5 seconds per move from move one (Round 1 - 4) / 90 minutes + 30 seconds per move from move one (Round 5 - 8)"]
[WhiteTitle "GM"]
[BlackTitle "IM"]
[WhiteFideId "2200031"]
[BlackFideId "6380166"]
[WhiteElo "2303"]
[BlackElo "2507"]

1. d4 {[%clk 00:15:09]} {[%emt 00:06:27]} d5 {[%clk 00:15:08]} {[%emt
00:00:03]} 2. Bf4 {[%clk 00:15:13]} {[%emt 00:00:01]} c5 {[%clk 00:14:48]}
{[%emt 00:00:25]} 3. e3 {[%clk 00:15:16]} Nc6 {[%clk 00:14:40]} {[%emt
00:00:13]} 4. c3 {[%clk 00:15:15]} {[%emt 00:00:06]} f6 {[%clk 00:14:25]}
{[%emt 00:00:21]} 5. Nf3 {[%clk 00:14:03]} {[%emt 00:01:17]} g5 {[%clk
00:14:28]} {[%emt 00:00:02]} 6. Bg3 {[%clk 00:14:04]} {[%emt 00:00:04]} h5
{[%clk 00:14:32]} {[%emt 00:00:02]} 7. h4 {[%clk 00:13:41]} g4 {[%clk
00:14:35]} {[%emt 00:00:30]} 8. Nfd2 {[%emt 00:01:33]} Nh6 {[%emt 00:01:20]} 9.
Bd3 {[%clk 00:13:32]} {[%emt 00:00:15]} Nf5 {[%emt 00:00:21]} 10. Qc2 {[%clk
00:13:25]} {[%emt 00:00:12]} Nxg3 {[%emt 00:00:24]} 11. fxg3 {[%emt 00:00:40]}
Bh6 {[%emt 00:01:20]} 12. Nf1 {[%clk 00:12:29]} {[%emt 00:00:15]} cxd4 {[%clk
00:09:20]} {[%emt 00:00:57]} 13. exd4 {[%clk 00:12:28]} {[%emt 00:00:06]} e5
{[%clk 00:09:21]} {[%emt 00:00:04]} 14. Bg6+ {[%clk 00:11:38]} {[%emt
00:00:55]} Kf8 {[%clk 00:09:05]} {[%emt 00:00:21]} 15. dxe5 {[%clk 00:11:21]}
{[%emt 00:00:22]} Nxe5 {[%clk 00:08:56]} {[%emt 00:00:13]} 16. Bf5 {[%clk
00:09:08]} {[%emt 00:02:18]} Kg7 {[%clk 00:08:31]} {[%emt 00:00:30]} 17. Nbd2
{[%clk 00:09:01]} {[%emt 00:00:12]} d4 {[%clk 00:08:23]} {[%emt 00:00:14]} 18.
Bxc8 {[%clk 00:07:07]} {[%emt 00:01:59]} Rxc8 {[%clk 00:08:05]} {[%emt
00:00:23]} 19. c4 {[%clk 00:06:30]} {[%emt 00:00:42]} Re8 {[%clk 00:07:55]}
{[%emt 00:00:15]} 20. Kd1 {[%clk 00:05:52]} {[%emt 00:00:43]} b5 {[%clk
00:05:46]} {[%emt 00:02:14]} 21. b3 {[%clk 00:05:56]} {[%emt 00:00:01]} d3
{[%clk 00:03:50]} {[%emt 00:02:01]} 22. Qc3 {[%clk 00:05:46]} {[%emt 00:00:15]}
Qe7 {[%clk 00:03:47]} {[%emt 00:00:08]} 23. Ne4 {[%clk 00:03:46]} {[%emt
00:02:05]} Nxc4 {[%clk 00:03:41]} {[%emt 00:00:10]} 0-1

[Event "Elite Hotels Open 2023"]
[Site "Elite Stadshotellet, Kungsgatan 6, Vaxjo, Sweden"]
[Date "2023.02.10"]
[Round "4.7"]
[White "Ernst, Thomas"]
[Black "Falkevall, Axel"]
[Result "0-1"]
[TimeControl "15 minutes + 5 seconds per move from move one (Round 1 - 4) / 90 minutes + 30 seconds per move from move one (Round 5 - 8)"]
[WhiteTitle "GM"]
[BlackTitle "FM"]
[WhiteFideId "1700065"]
[BlackFideId "1735560"]
[WhiteElo "2286"]
[BlackElo "2299"]

1. e4 {[%clk 00:15:08]} e5 {[%clk 00:15:09]} {[%emt 00:00:02]} 2. Nf3 {[%clk
00:15:11]} {[%emt 00:00:02]} Nc6 {[%clk 00:15:13]} {[%emt 00:00:01]} 3. Bb5
{[%clk 00:15:15]} {[%emt 00:00:01]} a6 {[%clk 00:15:17]} {[%emt 00:00:01]} 4.
Ba4 {[%clk 00:15:18]} {[%emt 00:00:01]} Nf6 {[%clk 00:15:20]} {[%emt 00:00:02]}
5. O-O {[%clk 00:15:20]} {[%emt 00:00:02]} Be7 {[%clk 00:15:23]} {[%emt
00:00:01]} 6. Re1 {[%clk 00:15:23]} {[%emt 00:00:03]} b5 {[%clk 00:15:27]}
{[%emt 00:00:02]} 7. Bb3 {[%clk 00:15:26]} {[%emt 00:00:02]} O-O {[%clk
00:15:30]} {[%emt 00:00:02]} 8. c3 {[%clk 00:15:29]} {[%emt 00:00:02]} d5
{[%clk 00:15:33]} {[%emt 00:00:02]} 9. exd5 Nxd5 {[%clk 00:15:37]} 10. Nxe5
Nxe5 {[%clk 00:15:40]} 11. Rxe5 {[%clk 00:15:37]} {[%emt 00:00:03]} c6 {[%clk
00:15:44]} 12. d4 {[%clk 00:15:39]} {[%emt 00:00:04]} Bd6 {[%clk 00:15:46]}
{[%emt 00:00:03]} 13. Re1 {[%clk 00:15:39]} {[%emt 00:00:04]} Qh4 {[%clk
00:15:48]} {[%emt 00:00:03]} 14. g3 {[%clk 00:15:41]} {[%emt 00:00:04]} Qh3
{[%clk 00:15:52]} {[%emt 00:00:01]} 15. Re4 {[%clk 00:15:39]} {[%emt 00:00:07]}
g5 {[%clk 00:15:55]} {[%emt 00:00:01]} 16. Qf1 {[%clk 00:15:40]} {[%emt
00:00:04]} Qh6 {[%clk 00:15:59]} {[%emt 00:00:02]} 17. Nd2 {[%clk 00:14:53]}
{[%emt 00:00:51]} Bh3 {[%clk 00:14:29]} {[%emt 00:01:35]} 18. Qe1 {[%clk
00:14:16]} {[%emt 00:00:40]} Nf4 {[%clk 00:08:49]} {[%emt 00:05:47]} 19. Nf3
{[%clk 00:10:51]} {[%emt 00:03:31]} Bg2 {[%clk 00:04:25]} {[%emt 00:04:28]} 20.
Nxg5 {[%clk 00:10:48]} {[%emt 00:00:08]} Bxe4 {[%clk 00:04:10]} {[%emt
00:00:20]} 21. Nxe4 {[%clk 00:10:46]} {[%emt 00:00:08]} Rae8 {[%clk 00:03:40]}
{[%emt 00:00:34]} 22. f3 {[%clk 00:10:14]} {[%emt 00:00:36]} Qg6 {[%clk
00:03:20]} {[%emt 00:00:27]} 23. Qf1 {[%clk 00:09:19]} {[%emt 00:00:59]} Nd5
{[%clk 00:02:57]} {[%emt 00:00:28]} 24. Bd2 {[%clk 00:08:28]} {[%emt 00:00:56]}
Bc7 {[%clk 00:02:30]} {[%emt 00:00:33]} 25. Re1 {[%clk 00:08:11]} {[%emt
00:00:21]} f5 {[%clk 00:02:03]} {[%emt 00:00:32]} 26. Nc5 {[%clk 00:08:03]}
{[%emt 00:00:12]} f4 {[%clk 00:01:42]} {[%emt 00:00:28]} 27. g4 {[%clk
00:07:52]} {[%emt 00:00:15]} h5 {[%clk 00:01:31]} {[%emt 00:00:17]} 28. h3
{[%clk 00:07:43]} {[%emt 00:00:14]} Kh8 {[%clk 00:01:24]} {[%emt 00:00:12]} 29.
Re4 {[%clk 00:05:32]} {[%emt 00:02:16]} Ne3 {[%clk 00:01:05]} {[%emt 00:00:23]}
30. Qd3 {[%clk 00:04:56]} {[%emt 00:00:41]} Qg5 {[%clk 00:00:40]} {[%emt
00:00:32]} 31. Rxe8 {[%clk 00:03:50]} {[%emt 00:01:11]} Rxe8 {[%clk 00:00:39]}
{[%emt 00:00:05]} 32. Ne4 {[%clk 00:03:49]} {[%emt 00:00:05]} Qh4 {[%clk
00:00:34]} {[%emt 00:00:11]} 33. Qe2 {[%clk 00:02:09]} {[%emt 00:01:45]} Rxe4
{[%clk 00:00:31]} {[%emt 00:00:07]} 34. fxe4 {[%clk 00:02:10]} {[%emt
00:00:05]} Qg3+ {[%clk 00:00:35]} 35. Kh1 {[%emt 00:00:02]} f3 {[%emt
00:00:01]} 36. Be1 {[%clk 00:01:43]} {[%emt 00:00:28]} Qxh3+ {[%clk 00:00:35]}
{[%emt 00:00:06]} 0-1

[Event "Elite Hotels Open 2023"]
[Site "Elite Stadshotellet, Kungsgatan 6, Vaxjo, Sweden"]
[Date "2023.02.10"]
[Round "4.9"]
[White "Lindberg, Bengt"]
[Black "Lindborg, Patrik"]
[Result "0-1"]
[TimeControl "15 minutes + 5 seconds per move from move one (Round 1 - 4) / 90 minutes + 30 seconds per move from move one (Round 5 - 8)"]
[WhiteTitle "IM"]
[WhiteFideId "1700359"]
[BlackFideId "1707507"]
[WhiteElo "2354"]
[BlackElo "2184"]

1. e4 {[%clk 00:15:07]} {[%emt 00:00:03]} c5 {[%clk 00:15:09]} {[%emt
00:00:02]} 2. Nf3 {[%clk 00:15:10]} {[%emt 00:00:01]} e6 {[%clk 00:15:12]}
{[%emt 00:00:02]} 3. d4 {[%clk 00:15:13]} {[%emt 00:00:01]} cxd4 {[%clk
00:15:15]} {[%emt 00:00:03]} 4. Nxd4 {[%clk 00:15:15]} {[%emt 00:00:02]} Qb6
{[%clk 00:15:10]} {[%emt 00:00:10]} 5. Nb3 {[%clk 00:14:37]} {[%emt 00:00:41]}
Nf6 {[%clk 00:14:59]} {[%emt 00:00:18]} 6. e5 {[%clk 00:13:41]} {[%emt
00:01:01]} Ne4 {[%clk 00:14:04]} {[%emt 00:01:00]} 7. Be3 {[%clk 00:13:29]}
{[%emt 00:00:15]} Qc7 {[%clk 00:14:08]} {[%emt 00:00:03]} 8. Qd4 {[%clk
00:11:49]} {[%emt 00:01:45]} f5 {[%clk 00:13:38]} {[%emt 00:00:35]} 9. f3
{[%clk 00:10:38]} {[%emt 00:01:14]} Nc6 {[%clk 00:12:54]} {[%emt 00:00:51]} 10.
Qd1 {[%clk 00:10:31]} {[%emt 00:00:11]} Nc5 {[%clk 00:11:25]} {[%emt 00:01:35]}
11. f4 {[%clk 00:09:49]} {[%emt 00:00:46]} Nxb3 {[%clk 00:10:50]} {[%emt
00:00:39]} 12. axb3 {[%clk 00:09:51]} {[%emt 00:00:05]} d6 {[%clk 00:10:50]}
{[%emt 00:00:05]} 13. exd6 {[%clk 00:09:17]} {[%emt 00:00:38]} Bxd6 {[%clk
00:10:11]} {[%emt 00:00:44]} 14. g3 {[%clk 00:09:18]} {[%emt 00:00:04]} O-O
{[%clk 00:08:29]} {[%emt 00:01:48]} 15. Nc3 {[%clk 00:09:21]} {[%emt 00:00:02]}
Be7 {[%clk 00:08:16]} {[%emt 00:00:19]} 16. Bc4 {[%clk 00:08:57]} {[%emt
00:00:27]} a6 {[%clk 00:07:42]} {[%emt 00:00:41]} 17. O-O {[%clk 00:08:16]}
{[%emt 00:00:45]} Rb8 {[%clk 00:07:43]} {[%emt 00:00:04]} 18. Re1 {[%clk
00:08:02]} {[%emt 00:00:19]} b5 {[%clk 00:07:42]} {[%emt 00:00:06]} 19. Bf1
{[%clk 00:08:04]} {[%emt 00:00:03]} Bf6 {[%clk 00:06:41]} {[%emt 00:01:06]} 20.
Qd2 {[%clk 00:07:42]} {[%emt 00:00:27]} Rd8 {[%clk 00:06:26]} {[%emt 00:00:20]}
21. Qf2 {[%clk 00:07:45]} {[%emt 00:00:02]} Ne7 {[%clk 00:03:54]} {[%emt
00:02:37]} 22. Bg2 {[%clk 00:07:13]} {[%emt 00:00:35]} b4 {[%clk 00:03:43]}
{[%emt 00:00:18]} 23. Na4 {[%clk 00:07:07]} {[%emt 00:00:10]} Nd5 {[%clk
00:03:38]} {[%emt 00:00:11]} 24. Bc5 {[%clk 00:06:37]} {[%emt 00:00:34]} Qf7
{[%clk 00:03:10]} {[%emt 00:00:34]} 25. Rad1 {[%clk 00:06:02]} {[%emt
00:00:39]} Bd7 {[%clk 00:02:47]} {[%emt 00:00:29]} 26. Bd4 {[%clk 00:05:27]}
{[%emt 00:00:39]} Bxa4 {[%clk 00:02:43]} {[%emt 00:00:10]} 27. bxa4 {[%clk
00:05:29]} {[%emt 00:00:03]} Rbc8 {[%clk 00:02:33]} {[%emt 00:00:15]} 28. Bxf6
{[%clk 00:05:13]} {[%emt 00:00:21]} Qxf6 {[%clk 00:01:57]} {[%emt 00:00:41]} 29.
Qe2 {[%clk 00:04:36]} {[%emt 00:00:41]} Rd6 {[%clk 00:01:16]} {[%emt 00:00:47]}
30. Qd3 {[%clk 00:03:55]} {[%emt 00:00:46]} Rcd8 {[%clk 00:01:11]} {[%emt
00:00:10]} 31. Qb3 {[%clk 00:03:38]} {[%emt 00:00:21]} a5 {[%clk 00:00:57]}
{[%emt 00:00:20]} 32. Rd2 {[%clk 00:03:02]} {[%emt 00:00:41]} h6 {[%clk
00:00:34]} {[%emt 00:00:28]} 33. Rde2 {[%clk 00:03:01]} {[%emt 00:00:06]} Kh7
{[%clk 00:00:33]} {[%emt 00:00:07]} 34. h4 {[%clk 00:02:40]} {[%emt 00:00:25]}
h5 {[%clk 00:00:22]} {[%emt 00:00:16]} 35. Kh2 {[%clk 00:02:19]} {[%emt
00:00:25]} Kh6 {[%clk 00:00:23]} {[%emt 00:00:04]} 36. Bxd5 {[%clk 00:01:53]}
{[%emt 00:00:31]} exd5 {[%clk 00:00:22]} {[%emt 00:00:07]} 37. Qd3 {[%clk
00:01:57]} {[%emt 00:00:01]} g6 {[%clk 00:00:19]} {[%emt 00:00:08]} 38. Re5
{[%clk 00:01:50]} {[%emt 00:00:12]} Rc8 {[%clk 00:00:20]} {[%emt 00:00:05]} 39.
R1e2 {[%clk 00:01:41]} {[%emt 00:00:13]} Rdc6 {[%clk 00:00:24]} {[%emt
00:00:01]} 40. b3 {[%clk 00:00:56]} {[%emt 00:00:50]} Rc3 {[%clk 00:00:24]}
{[%emt 00:00:05]} 41. Qxd5 {[%clk 00:00:59]} {[%emt 00:00:02]} Rxc2 {[%clk
00:00:26]} {[%emt 00:00:04]} 42. Qxa5 {[%clk 00:00:45]} {[%emt 00:00:19]} Qc6
{[%clk 00:00:25]} {[%emt 00:00:05]} 43. Qa7 {[%clk 00:00:27]} {[%emt 00:00:23]}
Qf3 {[%clk 00:00:24]} {[%emt 00:00:06]} 44. Qe3 {[%clk 00:00:26]} {[%emt
00:00:06]} Qf1 {[%clk 00:00:23]} {[%emt 00:00:06]} 45. Re7 {[%clk 00:00:11]}
{[%emt 00:00:20]} Rc1 {[%clk 00:00:14]} {[%emt 00:00:14]} 0-1

[Event "Elite Hotels Open 2023"]
[Site "Elite Stadshotellet, Kungsgatan 6, Vaxjo, Sweden"]
[Date "2023.02.10"]
[Round "4.10"]
[White "Kristensen, Kaare Hove"]
[Black "Cibo, Faris"]
[Result "1-0"]
[TimeControl "15 minutes + 5 seconds per move from move one (Round 1 - 4) / 90 minutes + 30 seconds per move from move one (Round 5 - 8)"]
[WhiteTitle "IM"]
[WhiteFideId "1400940"]
[BlackFideId "1764268"]
[WhiteElo "2210"]
[BlackElo "1923"]

1. e4 {[%clk 00:15:07]} {[%emt 00:00:02]} c5 {[%clk 00:15:09]} {[%emt
00:00:02]} 2. Nf3 {[%clk 00:15:10]} {[%emt 00:00:03]} d6 {[%clk 00:15:13]} 3.
d4 {[%clk 00:15:14]} cxd4 4. Nxd4 {[%clk 00:15:17]} Nf6 {[%clk 00:15:21]}
{[%emt 00:00:01]} 5. Nc3 {[%clk 00:15:21]} {[%emt 00:00:01]} a6 {[%clk
00:15:24]} {[%emt 00:00:01]} 6. Bg5 {[%clk 00:15:24]} {[%emt 00:00:02]} e6
{[%clk 00:15:27]} {[%emt 00:00:03]} 7. f4 {[%clk 00:15:27]} Be7 {[%clk
00:15:31]} {[%emt 00:00:02]} 8. Qf3 {[%clk 00:15:31]} {[%emt 00:00:01]} Qc7
{[%clk 00:15:31]} {[%emt 00:00:05]} 9. O-O-O {[%clk 00:15:33]} {[%emt
00:00:04]} Nbd7 {[%clk 00:15:31]} {[%emt 00:00:04]} 10. Bd3 {[%clk 00:15:34]}
{[%emt 00:00:03]} b5 {[%clk 00:15:16]} {[%emt 00:00:20]} 11. Rhe1 {[%clk
00:15:37]} {[%emt 00:00:02]} Bb7 {[%clk 00:15:17]} {[%emt 00:00:04]} 12. Qg3
{[%clk 00:15:27]} {[%emt 00:00:15]} b4 {[%clk 00:14:06]} {[%emt 00:01:17]} 13.
Nd5 {[%clk 00:14:55]} {[%emt 00:00:37]} exd5 {[%clk 00:14:08]} {[%emt
00:00:03]} 14. exd5 {[%clk 00:14:52]} {[%emt 00:00:08]} Kd8 {[%clk 00:13:26]}
{[%emt 00:00:47]} 15. Nc6+ {[%clk 00:14:52]} {[%emt 00:00:05]} Bxc6 {[%clk
00:13:21]} {[%emt 00:00:10]} 16. dxc6 {[%clk 00:14:55]} {[%emt 00:00:02]} Qxc6
{[%clk 00:12:26]} {[%emt 00:01:00]} 17. Bxf6 {[%clk 00:11:22]} {[%emt
00:03:38]} Nxf6 {[%clk 00:12:27]} {[%emt 00:00:03]} 18. Qxg7 {[%clk 00:10:01]}
{[%emt 00:01:26]} Re8 {[%clk 00:12:30]} {[%emt 00:00:02]} 19. Qxf7 {[%clk
00:07:01]} {[%emt 00:03:04]} Ra7 {[%clk 00:12:35]} {[%emt 00:00:02]} 20. Rxe7
{[%clk 00:06:34]} {[%emt 00:00:32]} Raxe7 {[%clk 00:12:38]} {[%emt 00:00:02]}
21. Qxf6 {[%clk 00:06:37]} {[%emt 00:00:02]} Kc7 {[%clk 00:12:15]} {[%emt
00:00:27]} 22. Qd4 {[%clk 00:05:45]} {[%emt 00:00:56]} Qc5 {[%clk 00:12:12]}
{[%emt 00:00:10]} 23. Bxa6 {[%clk 00:03:55]} {[%emt 00:01:55]} Re1 {[%clk
00:08:43]} {[%emt 00:03:33]} 24. Qxc5+ {[%clk 00:03:58]} {[%emt 00:00:04]} dxc5
{[%clk 00:08:43]} {[%emt 00:00:04]} 25. Kd2 {[%clk 00:03:27]} {[%emt 00:00:36]}
Rxd1+ {[%clk 00:08:37]} {[%emt 00:00:11]} 26. Kxd1 {[%clk 00:03:31]} Re6 {[%clk
00:04:24]} {[%emt 00:04:18]} 27. Bd3 {[%clk 00:03:20]} {[%emt 00:00:16]} Rh6
{[%clk 00:04:26]} {[%emt 00:00:02]} 28. h3 {[%clk 00:03:13]} {[%emt 00:00:12]}
Rh4 {[%clk 00:04:08]} {[%emt 00:00:23]} 29. Ke2 {[%clk 00:02:52]} {[%emt
00:00:27]} c4 {[%clk 00:03:49]} {[%emt 00:00:24]} 30. Bxc4 {[%clk 00:02:31]}
{[%emt 00:00:26]} Rxf4 {[%clk 00:03:50]} {[%emt 00:00:04]} 31. Bd3 {[%clk
00:02:34]} {[%emt 00:00:02]} h6 {[%clk 00:03:07]} {[%emt 00:00:47]} 32. Ke3
{[%clk 00:02:37]} {[%emt 00:00:02]} Rf8 {[%clk 00:03:08]} {[%emt 00:00:05]} 33.
Kd4 {[%clk 00:01:52]} {[%emt 00:00:50]} Kb6 {[%clk 00:02:10]} {[%emt 00:01:03]}
34. Kc4 {[%clk 00:01:13]} {[%emt 00:00:43]} Rf4+ {[%clk 00:02:05]} {[%emt
00:00:10]} 35. Kd5 {[%clk 00:01:16]} {[%emt 00:00:02]} h5 {[%clk 00:01:24]}
{[%emt 00:00:46]} 36. Ke5 {[%clk 00:01:20]} {[%emt 00:00:02]} Rf2 {[%clk
00:01:12]} {[%emt 00:00:17]} 37. g4 {[%clk 00:01:22]} {[%emt 00:00:03]} h4
{[%clk 00:00:54]} {[%emt 00:00:23]} 38. g5 {[%clk 00:01:25]} {[%emt 00:00:02]}
Rf3 {[%clk 00:00:47]} {[%emt 00:00:11]} 39. Bf5 {[%clk 00:01:26]} {[%emt
00:00:03]} Rg3 {[%clk 00:00:24]} {[%emt 00:00:29]} 40. g6 {[%clk 00:01:23]}
{[%emt 00:00:07]} Kc5 {[%clk 00:00:22]} {[%emt 00:00:08]} 41. Kf6 {[%clk
00:01:23]} {[%emt 00:00:04]} Kd4 {[%clk 00:00:22]} {[%emt 00:00:06]} 42. g7
{[%clk 00:01:22]} {[%emt 00:00:06]} Ke3 {[%clk 00:00:20]} {[%emt 00:00:07]} 43.
Bg4 {[%clk 00:01:08]} {[%emt 00:00:19]} 1-0

[Event "Elite Hotels Open 2023"]
[Site "Elite Stadshotellet, Kungsgatan 6, Vaxjo, Sweden"]
[Date "2023.02.10"]
[Round "4.11"]
[White "Jakenberg, Jussi"]
[Black "Johansson, Ulf"]
[Result "0-1"]
[TimeControl "15 minutes + 5 seconds per move from move one (Round 1 - 4) / 90 minutes + 30 seconds per move from move one (Round 5 - 8)"]
[WhiteFideId "1710931"]
[BlackFideId "1701380"]
[WhiteElo "2059"]
[BlackElo "2205"]

1. d4 {[%clk 00:15:07]} {[%emt 00:00:02]} Nf6 {[%clk 00:15:08]} {[%emt
00:00:03]} 2. Nf3 {[%clk 00:15:11]} {[%emt 00:00:01]} g6 {[%clk 00:15:11]}
{[%emt 00:00:02]} 3. g3 {[%clk 00:15:09]} {[%emt 00:00:07]} Bg7 {[%clk
00:15:14]} {[%emt 00:00:01]} 4. Bg2 {[%clk 00:15:13]} {[%emt 00:00:01]} O-O
{[%clk 00:15:12]} {[%emt 00:00:07]} 5. O-O {[%clk 00:15:15]} {[%emt 00:00:02]}
d5 {[%clk 00:15:11]} {[%emt 00:00:07]} 6. c4 {[%clk 00:15:14]} {[%emt
00:00:06]} c6 {[%clk 00:15:14]} {[%emt 00:00:02]} 7. Ne5 {[%clk 00:14:56]}
{[%emt 00:00:23]} dxc4 {[%clk 00:14:40]} {[%emt 00:00:39]} 8. Nxc4 {[%clk
00:14:43]} {[%emt 00:00:17]} Be6 {[%clk 00:14:43]} {[%emt 00:00:03]} 9. Ne5
{[%clk 00:13:50]} {[%emt 00:00:59]} Bd5 {[%clk 00:14:15]} {[%emt 00:00:32]} 10.
Nc3 {[%clk 00:12:17]} {[%emt 00:01:38]} Bxg2 {[%clk 00:14:02]} {[%emt
00:00:13]} 11. Kxg2 {[%clk 00:12:19]} {[%emt 00:00:09]} Nd5 {[%clk 00:13:08]}
{[%emt 00:00:58]} 12. Qb3 {[%clk 00:09:40]} {[%emt 00:02:45]} Nxc3 {[%clk
00:08:42]} {[%emt 00:04:31]} 13. bxc3 {[%clk 00:09:17]} {[%emt 00:00:28]} Qd5+
{[%clk 00:08:25]} {[%emt 00:00:22]} 14. Qxd5 {[%clk 00:08:11]} {[%emt
00:01:11]} cxd5 {[%clk 00:08:28]} {[%emt 00:00:02]} 15. Bf4 {[%clk 00:08:13]}
{[%emt 00:00:03]} Bxe5 {[%clk 00:08:15]} {[%emt 00:00:17]} 16. Bxe5 {[%clk
00:08:15]} {[%emt 00:00:04]} Nc6 {[%clk 00:08:18]} {[%emt 00:00:02]} 17. Rab1
{[%clk 00:06:45]} {[%emt 00:01:35]} b6 {[%clk 00:08:22]} {[%emt 00:00:02]} 18.
Rb5 {[%clk 00:06:12]} {[%emt 00:00:37]} Nxe5 {[%clk 00:07:24]} {[%emt
00:01:03]} 19. dxe5 {[%clk 00:06:15]} {[%emt 00:00:02]} e6 {[%clk 00:07:28]}
{[%emt 00:00:01]} 20. e3 {[%clk 00:05:22]} {[%emt 00:00:58]} Rfc8 {[%clk
00:07:31]} {[%emt 00:00:02]} 21. Rc1 {[%clk 00:05:25]} {[%emt 00:00:01]} Rc4
{[%clk 00:07:35]} {[%emt 00:00:02]} 22. Kf3 {[%clk 00:05:13]} {[%emt 00:00:17]}
Rac8 {[%clk 00:07:33]} {[%emt 00:00:07]} 23. Rb3 {[%clk 00:05:15]} {[%emt
00:00:03]} Re4 {[%clk 00:06:33]} {[%emt 00:01:04]} 24. Rd1 {[%clk 00:03:35]}
{[%emt 00:01:46]} Rec4 {[%clk 00:05:22]} {[%emt 00:01:16]} 25. Rd3 {[%clk
00:03:22]} {[%emt 00:00:18]} h5 {[%clk 00:04:54]} {[%emt 00:00:35]} 26. h4
{[%clk 00:03:14]} {[%emt 00:00:11]} Ra4 {[%clk 00:04:29]} {[%emt 00:00:29]} 27.
Rd2 {[%clk 00:02:34]} {[%emt 00:00:45]} Rc5 {[%clk 00:04:31]} {[%emt 00:00:04]}
28. Ke2 {[%clk 00:02:28]} {[%emt 00:00:11]} Rca5 {[%clk 00:03:54]} {[%emt
00:00:41]} 29. Rbb2 {[%clk 00:02:30]} {[%emt 00:00:03]} Ra3 {[%clk 00:03:57]}
{[%emt 00:00:02]} 30. Rdc2 {[%clk 00:02:23]} {[%emt 00:00:13]} Kf8 {[%clk
00:03:42]} {[%emt 00:00:20]} 31. f4 {[%clk 00:02:23]} {[%emt 00:00:05]} Ke7
{[%clk 00:03:46]} {[%emt 00:00:01]} 32. Kd2 {[%clk 00:01:55]} {[%emt 00:00:33]}
R3a4 {[%clk 00:03:49]} {[%emt 00:00:03]} 33. Kd3 {[%clk 00:01:44]} {[%emt
00:00:15]} b5 {[%clk 00:03:47]} {[%emt 00:00:07]} 34. Kd2 {[%clk 00:01:38]}
{[%emt 00:00:10]} Kd7 {[%clk 00:03:38]} {[%emt 00:00:15]} 35. Kd3 {[%clk
00:01:42]} {[%emt 00:00:01]} a6 {[%clk 00:03:41]} {[%emt 00:00:03]} 36. Rd2
{[%clk 00:01:40]} {[%emt 00:00:07]} Rc4 {[%clk 00:03:44]} {[%emt 00:00:01]} 37.
Rdc2 {[%clk 00:01:40]} {[%emt 00:00:05]} Kc6 {[%clk 00:03:47]} {[%emt
00:00:02]} 38. Rd2 {[%clk 00:01:30]} {[%emt 00:00:15]} Kc5 {[%clk 00:03:49]}
{[%emt 00:00:04]} 39. Rdc2 {[%clk 00:01:33]} {[%emt 00:00:02]} Ra3 {[%clk
00:03:52]} {[%emt 00:00:01]} 40. Kd2 {[%clk 00:01:32]} {[%emt 00:00:06]} a5
{[%clk 00:03:29]} {[%emt 00:00:28]} 41. Rb3 {[%clk 00:01:20]} {[%emt 00:00:17]}
Rca4 {[%clk 00:03:19]} {[%emt 00:00:16]} 42. Kd3 {[%clk 00:01:00]} {[%emt
00:00:23]} Rxa2 {[%clk 00:03:14]} {[%emt 00:00:11]} 43. Rxa2 {[%clk 00:01:00]}
{[%emt 00:00:05]} Rxa2 {[%clk 00:03:18]} {[%emt 00:00:01]} 44. Rb1 {[%clk
00:00:46]} {[%emt 00:00:19]} Rg2 {[%clk 00:03:19]} {[%emt 00:00:04]} 45. Ra1
{[%clk 00:00:47]} {[%emt 00:00:04]} a4 {[%clk 00:03:23]} {[%emt 00:00:01]} 0-1